[Event "Titled Tuesday Blitz December 20 Late 2022"]
[White "Forgacs, Attila Jr."]
[Black "Denishev, Marat"]
[WhiteFideId "773654"]
[BlackFideId "24131563"]
[WhiteElo "2168"]
[BlackElo "2194"]
[Result "0-1"]
[Round "03"]
[TimeControl "180+1"]
[Date "2022.12.21"]
[WhiteClock "0:00:17"]
[BlackClock "0:00:59"]

1. e4 {[%clk 0:03:00]}  c5 {[%clk 0:02:57]} 2. d3 {[%clk 0:03:00]}  Nf6 {[%clk 0:02:56]} 3. g3 {[%clk 0:03:00]}  Nc6 {[%clk 0:02:57]} 4. Bg2 {[%clk 0:03:01]}  d6 {[%clk 0:02:56]} 5. f4 {[%clk 0:03:01]}  g6 {[%clk 0:02:56]} 6. Nf3 {[%clk 0:03:02]}  Bg7 {[%clk 0:02:56]} 7. Nc3 {[%clk 0:03:03]}  O-O {[%clk 0:02:57]} 8. O-O {[%clk 0:03:03]}  Rb8 {[%clk 0:02:56]} 9. a4 {[%clk 0:03:03]}  a6 {[%clk 0:02:54]} 10. h3 {[%clk 0:03:02]}  b5 {[%clk 0:02:54]} 11. axb5 {[%clk 0:03:03]}  axb5 {[%clk 0:02:54]} 12. Be3 {[%clk 0:03:03]}  b4 {[%clk 0:02:55]} 13. Ne2 {[%clk 0:03:04]}  Nd7 {[%clk 0:02:55]} 14. Rb1 {[%clk 0:03:03]}  Ba6 {[%clk 0:02:52]} 15. Qd2 {[%clk 0:03:01]}  Nb6 {[%clk 0:02:47]} 16. g4 {[%clk 0:03:00]}  Na4 {[%clk 0:02:47]} 17. b3 {[%clk 0:02:37]}  Nc3 {[%clk 0:02:46]} 18. Nxc3 {[%clk 0:02:37]}  bxc3 {[%clk 0:02:46]} 19. Qf2 {[%clk 0:02:34]}  Nb4 {[%clk 0:02:40]} 20. f5 {[%clk 0:02:29]}  Bxd3 {[%clk 0:02:37]} 21. cxd3 {[%clk 0:02:27]}  c2 {[%clk 0:02:38]} 22. Rbc1 {[%clk 0:02:23]}  Nxd3 {[%clk 0:02:37]} 23. Qxc2 {[%clk 0:02:21]}  Nxc1 {[%clk 0:02:37]} 24. Rxc1 {[%clk 0:02:15]}  Qb6 {[%clk 0:02:32]} 25. Nd2 {[%clk 0:02:10]}  Qb4 {[%clk 0:02:28]} 26. g5 {[%clk 0:01:55]}  Be5 {[%clk 0:02:26]} 27. Nc4 {[%clk 0:01:47]}  Bg3 {[%clk 0:02:05]} 28. f6 {[%clk 0:01:38]}  exf6 {[%clk 0:02:02]} 29. gxf6 {[%clk 0:01:27]}  Qxb3 {[%clk 0:02:02]} 30. Qd2 {[%clk 0:01:24]}  Rb4 {[%clk 0:01:24]} 31. Bf4 {[%clk 0:00:30]}  Rxc4 {[%clk 0:01:07]} 32. Rxc4 {[%clk 0:00:29]}  Bxf4 {[%clk 0:01:05]} 33. Qxf4 {[%clk 0:00:13]}  Qxc4 {[%clk 0:01:05]} 34. Kh2 {[%clk 0:00:12]}  Qe6 {[%clk 0:01:03]} 35. Kh1 {[%clk 0:00:10]}  Qe5 {[%clk 0:01:03]} 36. Qf3 {[%clk 0:00:09]}  Ra8 {[%clk 0:01:02]} 37. Bf1 {[%clk 0:00:09]}  h6 {[%clk 0:00:59]} 38. Qe3 {[%clk 0:00:08]}  Qxf6 {[%clk 0:00:57]} 39. Bg2 {[%clk 0:00:09]}  Ra1+ {[%clk 0:00:57]} 40. Kh2 {[%clk 0:00:09]}  Qe5+ {[%clk 0:00:57]} 41. Qg3 {[%clk 0:00:09]}  Qxg3+ {[%clk 0:00:57]} 42. Kxg3 {[%clk 0:00:10]}  Kg7 {[%clk 0:00:57]} 43. e5 {[%clk 0:00:11]}  dxe5 {[%clk 0:00:57]} 44. Be4 {[%clk 0:00:12]}  f5 {[%clk 0:00:57]} 45. Kf2 {[%clk 0:00:12]}  fxe4 {[%clk 0:00:57]} 46. Ke2 {[%clk 0:00:13]}  Ra3 {[%clk 0:00:57]} 47. h4 {[%clk 0:00:13]}  g5 {[%clk 0:00:57]} 48. h5 {[%clk 0:00:14]}  Rf3 {[%clk 0:00:56]} 49. Ke1 {[%clk 0:00:15]}  g4 {[%clk 0:00:57]} 50. Ke2 {[%clk 0:00:16]}  g3 {[%clk 0:00:58]} 51. Ke1 {[%clk 0:00:16]}  g2 {[%clk 0:00:58]} 52. Ke2 {[%clk 0:00:17]}  g1=Q {[%clk 0:00:59]} 53. Kd2 {[%clk 0:00:17]}  Qg2+ {[%clk 0:00:59]} 54. Ke1 {[%clk 0:00:17]} 0-1


[Site "https://www.chess.com"]

[Event "Titled Tuesday Blitz December 20 Late 2022"]
[White "Gonzalez, Francisco Silva"]
[Black "Andrews, Todd"]
[WhiteFideId "1512285"]
[BlackFideId "2012456"]
[WhiteElo "2220"]
[BlackElo "2320"]
[Result "0-1"]
[Round "03"]
[TimeControl "180+1"]
[Date "2022.12.21"]
[WhiteClock "0:00:55"]
[BlackClock "0:01:05"]

1. d4 {[%clk 0:03:00]}  Nf6 {[%clk 0:02:59]} 2. c4 {[%clk 0:03:00]}  c5 {[%clk 0:03:00]} 3. d5 {[%clk 0:02:59]}  b5 {[%clk 0:03:00]} 4. cxb5 {[%clk 0:02:57]}  a6 {[%clk 0:03:01]} 5. b6 {[%clk 0:02:58]}  e6 {[%clk 0:03:00]} 6. Nc3 {[%clk 0:02:58]}  Nxd5 {[%clk 0:03:01]} 7. Nxd5 {[%clk 0:02:58]}  exd5 {[%clk 0:03:01]} 8. Qxd5 {[%clk 0:02:57]}  Nc6 {[%clk 0:03:02]} 9. Nf3 {[%clk 0:02:58]}  Rb8 {[%clk 0:03:02]} 10. e4 {[%clk 0:02:58]}  Be7 {[%clk 0:03:02]} 11. Bc4 {[%clk 0:02:59]}  O-O {[%clk 0:03:02]} 12. O-O {[%clk 0:02:58]}  Rxb6 {[%clk 0:03:02]} 13. b3 {[%clk 0:02:57]}  d6 {[%clk 0:03:01]} 14. Ng5 {[%clk 0:02:56]}  Qe8 {[%clk 0:02:31]} 15. Qd1 {[%clk 0:02:44]}  h6 {[%clk 0:02:23]} 16. Nf3 {[%clk 0:02:41]}  Bf6 {[%clk 0:02:23]} 17. Bf4 {[%clk 0:02:24]}  Bxa1 {[%clk 0:02:18]} 18. Qxa1 {[%clk 0:02:24]}  Qxe4 {[%clk 0:02:18]} 19. Bxd6 {[%clk 0:02:22]}  Rd8 {[%clk 0:02:07]} 20. Bxc5 {[%clk 0:02:18]}  Rb8 {[%clk 0:02:04]} 21. Re1 {[%clk 0:02:12]}  Qg6 {[%clk 0:02:04]} 22. Ne5 {[%clk 0:02:02]}  Nxe5 {[%clk 0:02:03]} 23. Qxe5 {[%clk 0:02:01]}  Bb7 {[%clk 0:02:01]} 24. Qg3 {[%clk 0:01:55]}  Qxg3 {[%clk 0:01:56]} 25. hxg3 {[%clk 0:01:55]}  Re8 {[%clk 0:01:56]} 26. Rc1 {[%clk 0:01:54]}  Rbd8 {[%clk 0:01:52]} 27. Be3 {[%clk 0:01:53]}  Rxe3 {[%clk 0:01:38]} 28. fxe3 {[%clk 0:01:51]}  Rd2 {[%clk 0:01:37]} 29. Bf1 {[%clk 0:01:52]}  Rxa2 {[%clk 0:01:36]} 30. Rc7 {[%clk 0:01:51]}  Bd5 {[%clk 0:01:36]} 31. Rd7 {[%clk 0:01:19]}  Bxb3 {[%clk 0:01:32]} 32. e4 {[%clk 0:01:19]}  a5 {[%clk 0:01:27]} 33. Ra7 {[%clk 0:01:18]}  a4 {[%clk 0:01:27]} 34. Bb5 {[%clk 0:01:16]}  a3 {[%clk 0:01:22]} 35. Bd7 {[%clk 0:01:13]}  Ra1+ {[%clk 0:01:21]} 36. Kf2 {[%clk 0:01:13]}  g6 {[%clk 0:01:19]} 37. Rb7 {[%clk 0:01:07]}  a2 {[%clk 0:01:16]} 38. Rxb3 {[%clk 0:01:06]}  Rf1+ {[%clk 0:01:15]} 39. Ke2 {[%clk 0:00:55]}  a1=Q {[%clk 0:01:14]} 40. Rb8+ {[%clk 0:00:55]}  Kg7 {[%clk 0:01:13]} 41. Bc6 {[%clk 0:00:54]}  Qd1+ {[%clk 0:01:11]} 42. Ke3 {[%clk 0:00:53]}  Re1+ {[%clk 0:01:10]} 43. Kf4 {[%clk 0:00:54]}  Qd6+ {[%clk 0:01:08]} 44. e5 {[%clk 0:00:54]}  Qxe5+ {[%clk 0:01:07]} 45. Kf3 {[%clk 0:00:55]}  Qf5# {[%clk 0:01:05]} 0-1


[Site "https://www.chess.com"]

[Event "Titled Tuesday Blitz December 20 Late 2022"]
[White "Grigoriants, Sergey"]
[Black "Araujo Sanchez, Josue"]
[WhiteFideId "4130804"]
[BlackFideId "6416896"]
[WhiteElo "2502"]
[BlackElo "2370"]
[Result "0-1"]
[Round "03"]
[TimeControl "180+1"]
[Date "2022.12.21"]
[WhiteClock "0:00:02"]
[BlackClock "0:01:08"]

1. d4 {[%clk 0:02:54]}  d5 {[%clk 0:02:59]} 2. c4 {[%clk 0:02:54]}  dxc4 {[%clk 0:03:00]} 3. e3 {[%clk 0:02:50]}  Nf6 {[%clk 0:02:59]} 4. Bxc4 {[%clk 0:02:50]}  e6 {[%clk 0:03:00]} 5. Nf3 {[%clk 0:02:48]}  a6 {[%clk 0:03:01]} 6. O-O {[%clk 0:02:48]}  c5 {[%clk 0:03:02]} 7. Bb3 {[%clk 0:02:47]}  Nc6 {[%clk 0:03:02]} 8. Nc3 {[%clk 0:02:47]}  Be7 {[%clk 0:03:00]} 9. Qe2 {[%clk 0:02:46]}  cxd4 {[%clk 0:03:00]} 10. Rd1 {[%clk 0:02:46]}  O-O {[%clk 0:03:01]} 11. exd4 {[%clk 0:02:46]}  Nb4 {[%clk 0:02:59]} 12. Ne5 {[%clk 0:02:44]}  Bd7 {[%clk 0:02:59]} 13. Bf4 {[%clk 0:02:35]}  Bc6 {[%clk 0:02:59]} 14. Nxc6 {[%clk 0:02:28]}  bxc6 {[%clk 0:02:57]} 15. Be5 {[%clk 0:02:26]}  a5 {[%clk 0:02:55]} 16. Rac1 {[%clk 0:02:24]}  Nbd5 {[%clk 0:02:51]} 17. h3 {[%clk 0:02:15]}  Rc8 {[%clk 0:02:50]} 18. Bg3 {[%clk 0:01:55]}  Re8 {[%clk 0:02:44]} 19. Na4 {[%clk 0:01:52]}  Bd6 {[%clk 0:02:40]} 20. Be5 {[%clk 0:01:47]}  Bf8 {[%clk 0:02:29]} 21. Bc4 {[%clk 0:01:43]}  Nd7 {[%clk 0:02:23]} 22. Ba6 {[%clk 0:01:39]}  Nxe5 {[%clk 0:02:23]} 23. Bxc8 {[%clk 0:01:35]}  Ng6 {[%clk 0:02:19]} 24. Bb7 {[%clk 0:01:32]}  Qg5 {[%clk 0:02:14]} 25. Qg4 {[%clk 0:01:30]}  Qh6 {[%clk 0:02:10]} 26. Bxc6 {[%clk 0:01:28]}  Rc8 {[%clk 0:02:10]} 27. Rc4 {[%clk 0:01:09]}  Nf6 {[%clk 0:02:06]} 28. Qg3 {[%clk 0:00:55]}  Nf4 {[%clk 0:02:03]} 29. Nc3 {[%clk 0:00:51]}  Bd6 {[%clk 0:02:01]} 30. Qf3 {[%clk 0:00:49]}  g5 {[%clk 0:01:57]} 31. d5 {[%clk 0:00:29]}  e5 {[%clk 0:01:41]} 32. Nb5 {[%clk 0:00:19]}  e4 {[%clk 0:01:36]} 33. Rxe4 {[%clk 0:00:18]}  Nxe4 {[%clk 0:01:36]} 34. Qxe4 {[%clk 0:00:18]}  Rd8 {[%clk 0:01:34]} 35. Nxd6 {[%clk 0:00:17]}  Qxd6 {[%clk 0:01:34]} 36. Qf5 {[%clk 0:00:13]}  h6 {[%clk 0:01:34]} 37. Re1 {[%clk 0:00:12]}  Kg7 {[%clk 0:01:26]} 38. h4 {[%clk 0:00:08]}  gxh4 {[%clk 0:01:23]} 39. Re4 {[%clk 0:00:07]}  Ng6 {[%clk 0:01:22]} 40. a3 {[%clk 0:00:04]}  Rb8 {[%clk 0:01:22]} 41. b4 {[%clk 0:00:03]}  axb4 {[%clk 0:01:22]} 42. axb4 {[%clk 0:00:04]}  Rxb4 {[%clk 0:01:21]} 43. Rxb4 {[%clk 0:00:04]}  Qxb4 {[%clk 0:01:22]} 44. Kh2 {[%clk 0:00:02]}  Qd4 {[%clk 0:01:20]} 45. g3 {[%clk 0:00:02]}  hxg3+ {[%clk 0:01:19]} 46. fxg3 {[%clk 0:00:03]}  Ne5 {[%clk 0:01:15]} 47. Qf4 {[%clk 0:00:02]}  Qb2+ {[%clk 0:01:09]} 48. Kh3 {[%clk 0:00:02]}  Qa1 {[%clk 0:01:08]} 0-1


[Site "https://www.chess.com"]

[Event "Titled Tuesday Blitz December 20 Late 2022"]
[White "Gritsenko, Nikolai"]
[Black "Bach, Matthias"]
[WhiteFideId "14112493"]
[BlackFideId "4603168"]
[WhiteElo "2389"]
[BlackElo "2165"]
[Result "1-0"]
[Round "03"]
[TimeControl "180+1"]
[Date "2022.12.21"]
[WhiteClock "0:00:21"]
[BlackClock "0:00:37"]

1. e4 {[%clk 0:03:00]}  e5 {[%clk 0:02:57]} 2. Nf3 {[%clk 0:03:00]}  Nc6 {[%clk 0:02:57]} 3. c3 {[%clk 0:02:57]}  f5 {[%clk 0:02:56]} 4. d4 {[%clk 0:02:55]}  fxe4 {[%clk 0:02:56]} 5. Nxe5 {[%clk 0:02:55]}  Nxe5 {[%clk 0:02:54]} 6. dxe5 {[%clk 0:02:55]}  d5 {[%clk 0:02:51]} 7. exd6 {[%clk 0:02:52]}  Bxd6 {[%clk 0:02:49]} 8. Bc4 {[%clk 0:02:42]}  Nf6 {[%clk 0:02:48]} 9. O-O {[%clk 0:02:31]}  Qe7 {[%clk 0:02:47]} 10. Bg5 {[%clk 0:02:24]}  Be6 {[%clk 0:02:39]} 11. Bxe6 {[%clk 0:01:48]}  Qxe6 {[%clk 0:02:39]} 12. Bxf6 {[%clk 0:01:42]}  Qxf6 {[%clk 0:02:29]} 13. Qa4+ {[%clk 0:01:39]}  Kf7 {[%clk 0:02:17]} 14. Qxe4 {[%clk 0:01:31]}  Rhe8 {[%clk 0:02:17]} 15. Qc4+ {[%clk 0:01:30]}  Kf8 {[%clk 0:02:16]} 16. Nd2 {[%clk 0:01:29]}  Re5 {[%clk 0:01:45]} 17. Rae1 {[%clk 0:01:15]}  Rae8 {[%clk 0:01:43]} 18. Nf3 {[%clk 0:00:56]}  Rxe1 {[%clk 0:01:33]} 19. Rxe1 {[%clk 0:00:54]}  Rxe1+ {[%clk 0:01:32]} 20. Nxe1 {[%clk 0:00:54]}  Bxh2+ {[%clk 0:01:28]} 21. Kxh2 {[%clk 0:00:50]}  Qe5+ {[%clk 0:01:28]} 22. Kh3 {[%clk 0:00:44]}  Qxe1 {[%clk 0:01:28]} 23. Qxc7 {[%clk 0:00:41]}  Qxf2 {[%clk 0:01:20]} 24. Qb8+ {[%clk 0:00:39]}  Kf7 {[%clk 0:01:16]} 25. Qxb7+ {[%clk 0:00:38]}  Kg6 {[%clk 0:01:16]} 26. Qe4+ {[%clk 0:00:37]}  Kg5 {[%clk 0:01:01]} 27. Qg4+ {[%clk 0:00:34]}  Kf6 {[%clk 0:01:00]} 28. Qh4+ {[%clk 0:00:34]}  Qxh4+ {[%clk 0:00:58]} 29. Kxh4 {[%clk 0:00:34]}  Ke5 {[%clk 0:00:59]} 30. c4 {[%clk 0:00:30]}  Kd4 {[%clk 0:00:54]} 31. b3 {[%clk 0:00:29]}  a5 {[%clk 0:00:53]} 32. Kg5 {[%clk 0:00:27]}  Kc5 {[%clk 0:00:48]} 33. Kf5 {[%clk 0:00:24]}  Kb4 {[%clk 0:00:48]} 34. Ke6 {[%clk 0:00:24]}  a4 {[%clk 0:00:37]} 35. Kf7 {[%clk 0:00:21]} 1-0


[Site "https://www.chess.com"]

[Event "Titled Tuesday Blitz December 20 Late 2022"]
[White "Hambleton, Aman"]
[Black "Colpe, Malte"]
[WhiteFideId "2606577"]
[BlackFideId "24623075"]
[WhiteElo "2538"]
[BlackElo "2328"]
[Result "1-0"]
[Round "03"]
[TimeControl "180+1"]
[Date "2022.12.21"]
[WhiteClock "0:00:40"]
[BlackClock "0:00:06"]

1. d4 {[%clk 0:03:00]}  Nf6 {[%clk 0:02:55]} 2. Bf4 {[%clk 0:02:59]}  g6 {[%clk 0:02:46]} 3. Nc3 {[%clk 0:02:59]}  d5 {[%clk 0:02:44]} 4. e3 {[%clk 0:02:56]}  Bg7 {[%clk 0:02:42]} 5. h4 {[%clk 0:02:49]}  c5 {[%clk 0:02:30]} 6. Nb5 {[%clk 0:02:48]}  Na6 {[%clk 0:02:29]} 7. c3 {[%clk 0:02:46]}  Bf5 {[%clk 0:02:08]} 8. Be2 {[%clk 0:02:41]}  h5 {[%clk 0:02:06]} 9. Nf3 {[%clk 0:02:41]}  O-O {[%clk 0:02:04]} 10. a4 {[%clk 0:02:36]}  cxd4 {[%clk 0:01:58]} 11. exd4 {[%clk 0:02:35]}  Ne4 {[%clk 0:01:53]} 12. O-O {[%clk 0:02:09]}  f6 {[%clk 0:01:42]} 13. Nd2 {[%clk 0:01:37]}  Qd7 {[%clk 0:01:25]} 14. Nxe4 {[%clk 0:01:32]}  Bxe4 {[%clk 0:01:26]} 15. Re1 {[%clk 0:01:22]}  e5 {[%clk 0:00:15]} 16. Bg3 {[%clk 0:00:50]}  Rae8 {[%clk 0:00:08]} 17. Nxa7 {[%clk 0:00:40]}  Bf5 {[%clk 0:00:06]} 18. Bb5 {[%clk 0:00:40]} 1-0


[Site "https://www.chess.com"]

[Event "Titled Tuesday Blitz December 20 Late 2022"]
[White "Han, Yichen"]
[Black "ChessBrah"]
[WhiteFideId "1054430"]
[WhiteElo "2323"]
[BlackElo "2885"]
[Result "0-1"]
[Round "03"]
[TimeControl "180+1"]
[Date "2022.12.21"]
[WhiteClock "0:00:02"]
[BlackClock "0:00:50"]

1. e4 {[%clk 0:03:00]}  c5 {[%clk 0:02:52]} 2. Nc3 {[%clk 0:02:59]}  Nc6 {[%clk 0:02:47]} 3. Bb5 {[%clk 0:02:58]}  Nd4 {[%clk 0:02:42]} 4. Nf3 {[%clk 0:02:58]}  a6 {[%clk 0:02:41]} 5. Bd3 {[%clk 0:02:58]}  e6 {[%clk 0:02:42]} 6. O-O {[%clk 0:02:57]}  Ne7 {[%clk 0:02:42]} 7. Re1 {[%clk 0:02:56]}  Nec6 {[%clk 0:02:42]} 8. Nd5 {[%clk 0:02:54]}  d6 {[%clk 0:02:40]} 9. Ne3 {[%clk 0:02:51]}  Be7 {[%clk 0:02:39]} 10. Bf1 {[%clk 0:02:50]}  O-O {[%clk 0:02:38]} 11. c3 {[%clk 0:02:50]}  Nxf3+ {[%clk 0:02:38]} 12. Qxf3 {[%clk 0:02:51]}  Bd7 {[%clk 0:02:38]} 13. Qd1 {[%clk 0:02:44]}  Qb6 {[%clk 0:02:38]} 14. b3 {[%clk 0:02:40]}  Rfe8 {[%clk 0:02:35]} 15. Bb2 {[%clk 0:02:40]}  Bf6 {[%clk 0:02:32]} 16. Ng4 {[%clk 0:02:36]}  Bg5 {[%clk 0:02:30]} 17. d4 {[%clk 0:02:34]}  cxd4 {[%clk 0:02:30]} 18. cxd4 {[%clk 0:02:35]}  d5 {[%clk 0:02:29]} 19. e5 {[%clk 0:02:28]}  Rac8 {[%clk 0:02:29]} 20. a3 {[%clk 0:02:23]}  Na5 {[%clk 0:02:28]} 21. b4 {[%clk 0:02:15]}  Nc4 {[%clk 0:02:29]} 22. Bxc4 {[%clk 0:02:11]}  Rxc4 {[%clk 0:02:26]} 23. Ne3 {[%clk 0:02:06]}  Rc7 {[%clk 0:02:25]} 24. Rc1 {[%clk 0:01:52]}  Rec8 {[%clk 0:02:25]} 25. Qd2 {[%clk 0:01:52]}  h5 {[%clk 0:02:19]} 26. g3 {[%clk 0:01:45]}  a5 {[%clk 0:02:10]} 27. bxa5 {[%clk 0:01:35]}  Qb3 {[%clk 0:02:08]} 28. Rxc7 {[%clk 0:01:34]}  Rxc7 {[%clk 0:02:09]} 29. Rc1 {[%clk 0:01:32]}  Rxc1+ {[%clk 0:01:56]} 30. Qxc1 {[%clk 0:01:24]}  Qd3 {[%clk 0:01:52]} 31. Bc3 {[%clk 0:01:15]}  Bb5 {[%clk 0:01:48]} 32. Qd2 {[%clk 0:01:09]}  Qb1+ {[%clk 0:01:48]} 33. Qe1 {[%clk 0:01:08]}  Qb3 {[%clk 0:01:46]} 34. Bb4 {[%clk 0:01:05]}  h4 {[%clk 0:01:33]} 35. Qd1 {[%clk 0:00:56]}  Qb2 {[%clk 0:01:28]} 36. Qd2 {[%clk 0:00:35]}  Qb1+ {[%clk 0:01:28]} 37. Qe1 {[%clk 0:00:35]}  Qe4 {[%clk 0:01:26]} 38. gxh4 {[%clk 0:00:14]}  Qxh4 {[%clk 0:01:23]} 39. Qd1 {[%clk 0:00:12]}  Bf4 {[%clk 0:01:20]} 40. Ng4 {[%clk 0:00:09]}  Qh3 {[%clk 0:01:10]} 41. Be7 {[%clk 0:00:06]}  Bd3 {[%clk 0:01:03]} 42. f3 {[%clk 0:00:06]}  Bf5 {[%clk 0:01:02]} 43. Qe2 {[%clk 0:00:03]}  Bxg4 {[%clk 0:00:55]} 44. fxg4 {[%clk 0:00:04]}  Be3+ {[%clk 0:00:55]} 45. Kh1 {[%clk 0:00:05]}  Bxd4 {[%clk 0:00:56]} 46. Bb4 {[%clk 0:00:02]}  Bxe5 {[%clk 0:00:53]} 47. Kg1 {[%clk 0:00:01]}  Bd4+ {[%clk 0:00:51]} 48. Kh1 {[%clk 0:00:02]}  e5 {[%clk 0:00:51]} 49. Bd2 {[%clk 0:00:02]}  e4 {[%clk 0:00:51]} 50. a6 {[%clk 0:00:01]}  bxa6 {[%clk 0:00:50]} 51. Qxa6 {[%clk 0:00:02]}  Qf3# {[%clk 0:00:50]} 0-1


[Site "https://www.chess.com"]

[Event "Titled Tuesday Blitz December 20 Late 2022"]
[White "Hernandez Jimenez, Alexander Andres"]
[Black "Moreno Perez, Tobias Sebastian"]
[WhiteFideId "3900452"]
[BlackFideId "186716"]
[WhiteElo "2098"]
[BlackElo "2259"]
[Result "0-1"]
[Round "03"]
[TimeControl "180+1"]
[Date "2022.12.21"]
[WhiteClock "0:02:11"]
[BlackClock "0:02:58"]

1. e4 {[%clk 0:02:51]}  c6 {[%clk 0:02:59]} 2. d4 {[%clk 0:02:51]}  d5 {[%clk 0:03:00]} 3. exd5 {[%clk 0:02:52]}  cxd5 {[%clk 0:03:01]} 4. Bd3 {[%clk 0:02:52]}  Nc6 {[%clk 0:03:01]} 5. c3 {[%clk 0:02:52]}  Nf6 {[%clk 0:03:01]} 6. Bf4 {[%clk 0:02:52]}  Bg4 {[%clk 0:03:01]} 7. Qb3 {[%clk 0:02:51]}  Qd7 {[%clk 0:02:58]} 8. Nd2 {[%clk 0:02:46]}  e6 {[%clk 0:02:59]} 9. Ngf3 {[%clk 0:02:39]}  Bxf3 {[%clk 0:02:59]} 10. Nxf3 {[%clk 0:02:31]}  Bd6 {[%clk 0:02:59]} 11. O-O {[%clk 0:02:11]}  Bxf4 {[%clk 0:02:58]} 0-1


[Site "https://www.chess.com"]

[Event "Titled Tuesday Blitz December 20 Late 2022"]
[White "Holt, Conrad"]
[Black "Fiorito, Francisco"]
[WhiteFideId "2034387"]
[BlackFideId "180165"]
[WhiteElo "2592"]
[BlackElo "2348"]
[Result "1-0"]
[Round "03"]
[TimeControl "180+1"]
[Date "2022.12.21"]
[WhiteClock "0:01:48"]
[BlackClock "0:00:06"]

1. d4 {[%clk 0:02:58]}  Nf6 {[%clk 0:02:58]} 2. c4 {[%clk 0:02:57]}  c5 {[%clk 0:02:56]} 3. d5 {[%clk 0:02:57]}  d6 {[%clk 0:02:56]} 4. Nc3 {[%clk 0:02:56]}  g6 {[%clk 0:02:56]} 5. e4 {[%clk 0:02:56]}  Bg7 {[%clk 0:02:57]} 6. h3 {[%clk 0:02:56]}  e6 {[%clk 0:02:51]} 7. Nf3 {[%clk 0:02:56]}  O-O {[%clk 0:02:50]} 8. Bd3 {[%clk 0:02:55]}  exd5 {[%clk 0:02:49]} 9. cxd5 {[%clk 0:02:55]}  b5 {[%clk 0:02:45]} 10. Bxb5 {[%clk 0:02:52]}  Nxe4 {[%clk 0:02:37]} 11. Nxe4 {[%clk 0:02:52]}  Qa5+ {[%clk 0:02:37]} 12. Nfd2 {[%clk 0:02:53]}  Qxb5 {[%clk 0:02:35]} 13. Nxd6 {[%clk 0:02:54]}  Qd7 {[%clk 0:02:31]} 14. N2c4 {[%clk 0:02:50]}  Ba6 {[%clk 0:02:28]} 15. O-O {[%clk 0:02:48]}  Rd8 {[%clk 0:02:17]} 16. Re1 {[%clk 0:02:44]}  Bd4 {[%clk 0:02:08]} 17. Qf3 {[%clk 0:02:34]}  Bxc4 {[%clk 0:01:14]} 18. Nxc4 {[%clk 0:02:35]}  Na6 {[%clk 0:01:11]} 19. d6 {[%clk 0:02:35]}  Nb4 {[%clk 0:01:07]} 20. Re7 {[%clk 0:02:33]}  Qf5 {[%clk 0:01:06]} 21. Qxf5 {[%clk 0:02:31]}  gxf5 {[%clk 0:01:06]} 22. Bh6 {[%clk 0:02:24]}  Nd3 {[%clk 0:01:05]} 23. Rd1 {[%clk 0:02:22]}  Nxb2 {[%clk 0:00:36]} 24. Rxd4 {[%clk 0:02:17]}  cxd4 {[%clk 0:00:35]} 25. Nxb2 {[%clk 0:02:17]}  Rxd6 {[%clk 0:00:35]} 26. Bf4 {[%clk 0:02:09]}  Re6 {[%clk 0:00:35]} 27. Rd7 {[%clk 0:02:06]}  Re4 {[%clk 0:00:31]} 28. g3 {[%clk 0:02:05]}  a5 {[%clk 0:00:26]} 29. Nc4 {[%clk 0:02:00]}  Rc8 {[%clk 0:00:24]} 30. Nd2 {[%clk 0:01:58]}  Re1+ {[%clk 0:00:20]} 31. Kg2 {[%clk 0:01:58]}  Ra1 {[%clk 0:00:14]} 32. Nb3 {[%clk 0:01:54]}  Rxa2 {[%clk 0:00:14]} 33. Nxd4 {[%clk 0:01:54]}  a4 {[%clk 0:00:10]} 34. Nxf5 {[%clk 0:01:54]}  Re8 {[%clk 0:00:08]} 35. Nh6+ {[%clk 0:01:51]}  Kg7 {[%clk 0:00:08]} 36. Rxf7+ {[%clk 0:01:49]}  Kg6 {[%clk 0:00:09]} 37. Ra7 {[%clk 0:01:49]}  Ree2 {[%clk 0:00:09]} 38. Ra6+ {[%clk 0:01:49]}  Kh5 {[%clk 0:00:07]} 39. g4+ {[%clk 0:01:48]}  Kh4 {[%clk 0:00:06]} 40. Nf5# {[%clk 0:01:48]} 1-0


[Site "https://www.chess.com"]

[Event "Titled Tuesday Blitz December 20 Late 2022"]
[White "Horvath, Dominik"]
[Black "benny_aizenberg"]
[WhiteFideId "1642561"]
[WhiteElo "2405"]
[BlackElo "2426"]
[Result "1-0"]
[Round "03"]
[TimeControl "180+1"]
[Date "2022.12.21"]
[WhiteClock "0:01:04"]
[BlackClock "0:01:08"]

1. e4 {[%clk 0:03:00]}  c5 {[%clk 0:02:59]} 2. c3 {[%clk 0:03:00]}  Nf6 {[%clk 0:02:58]} 3. e5 {[%clk 0:02:59]}  Nd5 {[%clk 0:02:59]} 4. Bc4 {[%clk 0:03:00]}  Nb6 {[%clk 0:02:59]} 5. Bb3 {[%clk 0:03:00]}  d5 {[%clk 0:02:57]} 6. exd6 {[%clk 0:02:59]}  Qxd6 {[%clk 0:02:56]} 7. Na3 {[%clk 0:03:00]}  e6 {[%clk 0:02:47]} 8. Nf3 {[%clk 0:02:49]}  Be7 {[%clk 0:02:45]} 9. d4 {[%clk 0:02:47]}  O-O {[%clk 0:02:44]} 10. O-O {[%clk 0:02:38]}  Nc6 {[%clk 0:02:43]} 11. Be3 {[%clk 0:02:27]}  cxd4 {[%clk 0:02:35]} 12. Nb5 {[%clk 0:02:27]}  Qd8 {[%clk 0:02:28]} 13. Nbxd4 {[%clk 0:02:28]}  Bd7 {[%clk 0:02:25]} 14. Qe2 {[%clk 0:02:18]}  Na5 {[%clk 0:02:20]} 15. Bc2 {[%clk 0:02:16]}  Nac4 {[%clk 0:02:20]} 16. Bc1 {[%clk 0:02:17]}  Rc8 {[%clk 0:02:15]} 17. Qe4 {[%clk 0:02:12]}  g6 {[%clk 0:02:14]} 18. Rd1 {[%clk 0:02:03]}  Qc7 {[%clk 0:02:10]} 19. Bf4 {[%clk 0:01:58]}  Qc5 {[%clk 0:02:00]} 20. Rab1 {[%clk 0:01:18]}  Nd5 {[%clk 0:01:55]} 21. Bh6 {[%clk 0:01:16]}  Rfd8 {[%clk 0:01:53]} 22. Nb3 {[%clk 0:01:09]}  Qb6 {[%clk 0:01:42]} 23. Rxd5 {[%clk 0:01:07]}  exd5 {[%clk 0:01:18]} 24. Qxe7 {[%clk 0:01:07]}  Bg4 {[%clk 0:01:08]} 25. Ne5 {[%clk 0:01:05]}  Re8 {[%clk 0:01:08]} 26. Qxf7+ {[%clk 0:01:04]} 1-0


[Site "https://www.chess.com"]